fUSD/lending_fUSD_20240714
["ID","MTS","AMOUNT","RATE_DAILY","PERIOD"]
[332083330,1720953054696,-500.0,0.00013917,2]
[332083332,1720953054706,-500.0,0.00013917,2]
[332083334,1720953054716,-500.0,0.00013917,2]
[332083336,1720953054727,-500.0,0.00013917,2]
[332083338,1720953054737,-500.0,0.00013917,2]
[332083341,1720953054747,-589.97,0.00013917,2]
[332083343,1720953054757,-500.0,0.00013917,2]
[332083345,1720953054766,-500.0,0.00013917,2]
[332083347,1720953054776,-521.9,0.00013917,2]
[332083349,1720953054786,-957.15,0.00013917,2]
[332083351,1720953054795,-500.0,0.00013917,2]
[332083353,1720953054805,-169.29423146,0.00013917,2]
[332083355,1720953054815,-611.58,0.00013917,2]
[332083357,1720953054825,-521.59,0.00013917,2]
[332083359,1720953054834,-851.27,0.00013917,2]
[332083361,1720953054844,-500.0,0.00013917,2]
[332083363,1720953054854,-709.74,0.00013917,2]
[332083364,1720953054863,-500.0,0.00013917,2]
[332083366,1720953054872,-500.0,0.00013917,2]
[332083369,1720953054882,-500.0,0.00013917,2]
[332083371,1720953054891,-500.0,0.00013917,2]
[332083373,1720953054901,-500.0,0.00013917,2]
[332083375,1720953054911,-500.0,0.00013917,2]
[332083377,1720953054921,-500.0,0.00013917,2]
[332083379,1720953054931,-529.45,0.00013917,2]
[332083381,1720953054941,-691.5,0.00013917,2]
[332083383,1720953054951,-500.0,0.00013917,2]
[332083385,1720953054961,-771.5,0.00013917,2]
[332083387,1720953054970,-507.42,0.00013917,2]
[332083389,1720953054979,-500.0,0.00013917,2]
[332083391,1720953054989,-500.0,0.00013917,2]
[332083393,1720953054998,-500.0,0.00013917,2]
[332083395,1720953055008,-610.63,0.00013917,2]
[332083397,1720953055018,-707.58,0.00013917,2]
[332083399,1720953055027,-500.0,0.00013917,2]
[332083401,1720953055038,-782.02,0.00013917,2]
[332083403,1720953055047,-756.83,0.00013917,2]
[332083405,1720953055058,-500.0,0.00013917,2]
[332083407,1720953055067,-723.06,0.00013917,2]
[332083410,1720953055077,-500.0,0.00013917,2]
[332083412,1720953055087,-988.21,0.00013917,2]
[332083414,1720953055098,-795.81,0.00013917,2]
[332083416,1720953055108,-500.0,0.00013917,2]
[332083418,1720953055117,-1010.02,0.00013917,2]
[332083420,1720953055127,-500.0,0.00013917,2]
[332083422,1720953055137,-677.21,0.00013917,2]
[332083424,1720953055147,-500.0,0.00013917,2]
[332083426,1720953055158,-584.95,0.00013917,2]
[332083429,1720953055168,-500.0,0.00013917,2]
[332083431,1720953055178,-500.0,0.00013917,2]
[332083433,1720953055187,-500.0,0.00013917,2]
[332083435,1720953055197,-500.0,0.00013917,2]
[332083436,1720953055206,-659.93,0.00013917,2]
[332083439,1720953055216,-500.0,0.00013917,2]
[332083440,1720953055225,-500.0,0.00013917,2]
[332083442,1720953055235,-500.0,0.00013917,2]
[332083445,1720953055245,-500.0,0.00013917,2]
[332083447,1720953055255,-500.0,0.00013917,2]
[332083449,1720953055266,-500.0,0.00013917,2]
[332083451,1720953055275,-500.0,0.00013917,2]
[332083453,1720953055287,-500.0,0.00013917,2]
[332083455,1720953055300,-500.0,0.00013917,2]
[332083457,1720953055310,-576.77,0.00013917,2]
[332083460,1720953055321,-500.0,0.00013917,2]
[332083462,1720953055331,-582.79,0.00013917,2]
[332083464,1720953055342,-500.0,0.00013917,2]
[332083466,1720953055351,-367.79,0.00013917,2]
[332083468,1720953055362,-500.0,0.00013917,2]
[332083470,1720953055374,-732.18,0.00013917,2]
[332083472,1720953055387,-200.18183373,0.00013917,2]
[332083474,1720953055397,-500.0,0.00013917,2]
[332083476,1720953055407,-500.0,0.00013917,2]
[332083478,1720953055418,-500.0,0.00013917,2]
[332083480,1720953055427,-500.0,0.00013917,2]
[332083482,1720953055437,-500.0,0.00013917,2]
[332083484,1720953055446,-575.0,0.00013917,2]
[332083486,1720953055456,-500.0,0.00013917,2]
[332083488,1720953055465,-500.0,0.00013917,2]
[332083490,1720953055474,-500.0,0.00013917,2]
[332083493,1720953055484,-564.06,0.00013917,2]
[332083495,1720953055495,-633.87,0.00013917,2]
[332083497,1720953055505,-500.0,0.00013917,2]
[332083499,1720953055515,-500.0,0.00013917,2]
[332083501,1720953055525,-500.0,0.00013917,2]
[332083503,1720953055535,-500.0,0.00013917,2]
[332083505,1720953055545,-500.0,0.00013917,2]
[332083507,1720953055556,-500.0,0.00013917,2]
[332083509,1720953055566,-500.0,0.00013917,2]
[332083511,1720953055575,-500.0,0.00013917,2]
[332083513,1720953055585,-717.26,0.00013917,2]
[332083515,1720953055594,-503.37,0.00013917,2]
[332083518,1720953055604,-500.0,0.00013917,2]
[332083520,1720953055613,-531.88,0.00013917,2]
[332083522,1720953055622,-500.0,0.00013917,2]
[332083524,1720953055632,-625.34,0.00013917,2]
[332083526,1720953055641,-500.0,0.00013917,2]
[332083528,1720953055651,-536.56,0.00013917,2]
[332083530,1720953055660,-500.0,0.00013917,2]
[332083532,1720953055669,-500.0,0.00013917,2]
[332083534,1720953055678,-500.0,0.00013917,2]
[332083535,1720953055687,-559.11,0.00013917,2]
[332083537,1720953055696,-500.0,0.00013917,2]
[332083539,1720953055705,-500.0,0.00013917,2]
[332083541,1720953055714,-647.05,0.00013917,2]
[332083543,1720953055723,-514.14,0.00013917,2]
[332083545,1720953055732,-500.0,0.00013917,2]
[332083547,1720953055742,-546.81,0.00013917,2]
[332083549,1720953055751,-500.0,0.00013917,2]
[332083551,1720953055760,-500.0,0.00013917,2]
[332083553,1720953055769,-769.63,0.00013917,2]
[332083555,1720953055778,-500.0,0.00013917,2]
[332083557,1720953055786,-500.0,0.00013917,2]
[332083559,1720953055795,-500.0,0.00013917,2]
[332083561,1720953055804,-500.0,0.00013917,2]
[332083562,1720953055813,-567.08,0.00013917,2]
[332083564,1720953055823,-500.0,0.00013917,2]
[332083566,1720953055832,-511.7517959,0.00013917,2]
[332083568,1720953055841,-500.0,0.00013917,2]
[332083570,1720953055850,-500.0,0.00013917,2]
[332083572,1720953055859,-514.02,0.00013917,2]
[332083574,1720953055868,-500.0,0.00013917,2]
[332083576,1720953055878,-500.0,0.00013917,2]
[332083578,1720953055887,-500.0,0.00013917,2]
[332083579,1720953055896,-500.0,0.00013917,2]
[332083580,1720953055905,-1021.83,0.00013917,2]
[332083581,1720953055914,-500.0,0.00013917,2]
[332083582,1720953055923,-553.48,0.00013917,2]
[332083583,1720953055932,-500.0,0.00013917,2]
[332083584,1720953055942,-722.88,0.00013917,2]
[332083585,1720953055951,-500.0,0.00013917,2]
[332083586,1720953055961,-821.75,0.00013917,2]
[332083587,1720953055970,-721.24,0.00013917,2]
[332083588,1720953055979,-500.0,0.00013917,2]
[332083590,1720953055989,-734.99,0.00013917,2]
[332083592,1720953055998,-500.0,0.00013917,2]
[332083594,1720953056007,-684.45,0.00013917,2]
[332083596,1720953056016,-500.0,0.00013917,2]
[332083597,1720953056025,-500.0,0.00013917,2]
[332083599,1720953056035,-500.0,0.00013917,2]
[332083601,1720953056044,-500.0,0.00013917,2]
[332083603,1720953056053,-500.0,0.00013917,2]
[332083605,1720953056063,-500.0,0.00013917,2]
[332083607,1720953056072,-659.11,0.00013917,2]
[332083609,1720953056081,-788.08,0.00013917,2]
[332083611,1720953056090,-652.62,0.00013917,2]
[332083613,1720953056099,-963.07,0.00013917,2]
[332083615,1720953056109,-559.2,0.00013917,2]
[332083617,1720953056118,-500.0,0.00013917,2]
[332083619,1720953056127,-586.93,0.00013917,2]
[332083621,1720953056136,-1045.12,0.00013917,2]
[332083623,1720953056146,-500.0,0.00013917,2]
[332083625,1720953056155,-564.05,0.00013917,2]
[332083627,1720953056164,-813.9,0.00013917,2]
[332083629,1720953056174,-500.0,0.00013917,2]
[332083631,1720953056184,-500.0,0.00013917,2]
[332083633,1720953056194,-851.27,0.00013917,2]
[332083635,1720953056203,-552.78,0.00013917,2]
[332083637,1720953056212,-967.32,0.00013917,2]
[332083639,1720953056221,-1237.64,0.00013917,2]
[332083641,1720953056231,-500.0,0.00013917,2]
[332083643,1720953056240,-500.0,0.00013917,2]
[332083645,1720953056250,-661.8,0.00013917,2]
[332083647,1720953056259,-721.93,0.00013917,2]
[332083649,1720953056268,-650.84,0.00013917,2]
[332083652,1720953056278,-500.0,0.00013917,2]
[332083654,1720953056288,-500.0,0.00013917,2]
[332083656,1720953056302,-500.0,0.00013917,2]
[332083658,1720953056313,-542.23,0.00013917,2]
[332083660,1720953056322,-630.42,0.00013917,2]
[332083662,1720953056332,-500.0,0.00013917,2]
[332083664,1720953056342,-500.0,0.00013917,2]
[332083666,1720953056352,-668.0,0.00013917,2]
[332083668,1720953056360,-500.0,0.00013917,2]
[332083670,1720953056370,-500.0,0.00013917,2]
[332083672,1720953056379,-500.0,0.00013917,2]
[332083674,1720953056389,-500.0,0.00013917,2]
[332083676,1720953056399,-668.13,0.00013917,2]
[332083678,1720953056410,-500.0,0.00013917,2]
[332083680,1720953056419,-926.76,0.00013917,2]
[332083682,1720953056428,-500.0,0.00013917,2]
[332083684,1720953056437,-818.24,0.00013917,2]
[332083686,1720953056446,-500.0,0.00013917,2]
[332083688,1720953056455,-500.0,0.00013917,2]
[332083690,1720953056466,-500.0,0.00013917,2]
[332083692,1720953056475,-500.0,0.00013917,2]
[332083694,1720953056484,-500.0,0.00013917,2]
[332083696,1720953056493,-500.0,0.00013917,2]
[332083698,1720953056502,-875.29,0.00013917,2]
[332083700,1720953056511,-571.38,0.00013917,2]
[332083702,1720953056520,-500.0,0.00013917,2]
[332083704,1720953056530,-500.0,0.00013917,2]
[332083706,1720953056539,-4346.32,0.00013917,2]
[332083708,1720953056548,-500.0,0.00013917,2]
[332083710,1720953056557,-730.47,0.00013917,2]
[332083712,1720953056566,-500.0,0.00013917,2]
[332083714,1720953056576,-500.0,0.00013917,2]
[332083716,1720953056585,-793.29,0.00013917,2]
[332083718,1720953056594,-956.15,0.00013917,2]
[332083720,1720953056603,-513.3,0.00013917,2]
[332083722,1720953056612,-500.0,0.00013917,2]
[332083724,1720953056622,-500.0,0.00013917,2]
[332083726,1720953056631,-500.0,0.00013917,2]
[332083728,1720953056640,-500.0,0.00013917,2]
[332083730,1720953056649,-500.0,0.00013917,2]
[332083732,1720953056658,-500.0,0.00013917,2]
[332083734,1720953056667,-556.02,0.00013917,2]
[332083736,1720953056676,-978.75,0.00013917,2]
[332083738,1720953056686,-636.44,0.00013917,2]
[332083740,1720953056695,-500.0,0.00013917,2]
[332083742,1720953056704,-813.91,0.00013917,2]
[332083744,1720953056713,-2000.42,0.00013917,2]
[332083746,1720953056723,-532.91,0.00013917,2]
[332083748,1720953056732,-500.0,0.00013917,2]
[332083750,1720953056741,-759.7,0.00013917,2]
[332083752,1720953056750,-571.84,0.00013917,2]
[332083754,1720953056758,-813.67,0.00013917,2]
[332083756,1720953056768,-500.0,0.00013917,2]
[332083758,1720953056779,-500.0,0.00013917,2]
[332083760,1720953056790,-500.0,0.00013917,2]
[332083762,1720953056799,-1769.97,0.00013917,2]
[332083764,1720953056809,-2233.7,0.00013917,2]
[332083766,1720953056818,-563.79,0.00013917,2]
[332083768,1720953056827,-660.57,0.00013917,2]
[332083770,1720953056837,-500.0,0.00013917,2]
[332083772,1720953056846,-500.0,0.00013917,2]
[332083774,1720953056855,-597.19,0.00013917,2]
[332083777,1720953056869,-1284.3,0.00013917,2]
[332083779,1720953056884,-552.52,0.00013917,2]
[332083781,1720953056897,-500.0,0.00013917,2]
[332083784,1720953056910,-500.0,0.00013917,2]
[332083786,1720953056921,-1017.39,0.00013917,2]
[332083788,1720953056933,-500.0,0.00013917,2]
[332083791,1720953056947,-1063.32,0.00013917,2]
[332083793,1720953056961,-500.0,0.00013917,2]
[332083796,1720953056974,-500.0,0.00013917,2]
[332083798,1720953056986,-500.0,0.00013917,2]
[332083800,1720953057000,-532.45,0.00013917,2]
[332083803,1720953057012,-500.0,0.00013917,2]
[332083805,1720953057024,-810.42,0.00013917,2]
[332083807,1720953057038,-734.34,0.00013917,2]
[332083810,1720953057052,-500.0,0.00013917,2]
[332083812,1720953057063,-500.0,0.00013917,2]
[332083814,1720953057075,-500.0,0.00013917,2]
[332083816,1720953057087,-544.08,0.00013917,2]
[332083819,1720953057100,-1042.25,0.00013917,2]
[332083821,1720953057113,-767.04,0.00013917,2]
[332083823,1720953057124,-577.6,0.00013917,2]
[332083825,1720953057136,-500.0,0.00013917,2]
[332083828,1720953057146,-500.0,0.00013917,2]
[332083830,1720953057156,-500.0,0.00013917,2]
[332083832,1720953057169,-500.0,0.00013917,2]
[332083834,1720953057181,-500.0,0.00013917,2]
[332083836,1720953057193,-500.0,0.00013917,2]
[332083838,1720953057204,-890.25,0.00013917,2]
[332083841,1720953057217,-500.0,0.00013917,2]
[332083843,1720953057229,-500.0,0.00013917,2]
[332083845,1720953057242,-529.03,0.00013917,2]
[332083848,1720953057259,-500.0,0.00013917,2]
[332083850,1720953057272,-786.78,0.00013917,2]
[332083853,1720953057288,-991.4,0.00013917,2]
[332083855,1720953057299,-514.71,0.00013917,2]
[332083857,1720953057309,-500.0,0.00013917,2]
[332083859,1720953057319,-616.84,0.00013917,2]
[332083861,1720953057331,-500.0,0.00013917,2]
[332083864,1720953057344,-628.72,0.00013917,2]
[332083866,1720953057357,-785.58,0.00013917,2]
[332083868,1720953057370,-3926.71,0.00013917,2]
[332083870,1720953057380,-2899.14,0.00013917,2]
[332083872,1720953057391,-824.32,0.00013917,2]
[332083874,1720953057404,-819.62,0.00013917,2]
[332083877,1720953057416,-516.57,0.00013917,2]
[332083878,1720953057433,-922.21,0.00013917,2]
[332083879,1720953057445,-500.0,0.00013917,2]
[332083880,1720953057455,-773.04,0.00013917,2]
[332083881,1720953057466,-938.7,0.00013917,2]
[332083882,1720953057476,-655.89,0.00013917,2]
[332083883,1720953057490,-500.0,0.00013917,2]
[332083885,1720953057502,-841.33,0.00013917,2]
[332083888,1720953057515,-593.56,0.00013917,2]
[332083890,1720953057529,-397.38005736,0.00013917,2]
[332083892,1720953057542,-599.08,0.00013917,2]
[332083894,1720953057554,-500.0,0.00013917,2]
[332083897,1720953057568,-524.43,0.00013917,2]
[332083899,1720953057581,-995.19,0.00013917,2]
[332083901,1720953057594,-799.31,0.00013917,2]
[332083904,1720953057608,-500.0,0.00013917,2]
[332083906,1720953057620,-725.52,0.00013917,2]
[332083908,1720953057632,-500.0,0.00013917,2]
[332083911,1720953057645,-500.0,0.00013917,2]
[332083913,1720953057657,-500.0,0.00013917,2]
[332083915,1720953057671,-500.0,0.00013917,2]
[332083918,1720953057683,-301.35765127,0.00013941,2]
[332083920,1720953057696,-150.0,0.00013952,2]
[332083922,1720953057709,-150.0,0.00013952,2]
[332083925,1720953057722,-150.0,0.00013956,2]
[332083927,1720953057735,-197.9427257,0.00013967,2]
[332083929,1720953057747,-150.0,0.00013968,2]
[332083932,1720953057760,-500.0,0.00013972,2]
[332083934,1720953057772,-500.0,0.00013972,2]
[332083936,1720953057784,-500.0,0.00013972,2]
[332083939,1720953057797,-500.0,0.00013972,2]
[332083941,1720953057809,-500.0,0.00013972,2]
[332083943,1720953057820,-500.0,0.00013972,2]
[332083945,1720953057832,-500.0,0.00013972,2]
[332083948,1720953057845,-535.92,0.00013972,2]
[332083950,1720953057858,-500.0,0.00013972,2]
[332083952,1720953057873,-500.0,0.00013972,2]
[332083954,1720953057885,-500.0,0.00013972,2]
[332083957,1720953057896,-502.1,0.00013972,2]
[332083959,1720953057909,-500.0,0.00013972,2]
[332083961,1720953057921,-500.0,0.00013972,2]
[332083963,1720953057933,-151.0,0.00013972,2]
[332083966,1720953057945,-513.5,0.00013972,2]
[332083968,1720953057957,-151.0,0.00013972,2]
[332083970,1720953057968,-500.0,0.00013972,2]
[332083972,1720953057980,-500.0,0.00013972,2]
[332083974,1720953057991,-500.0,0.00013972,2]
[332083977,1720953058003,-500.0,0.00013972,2]
[332083979,1720953058016,-500.0,0.00013972,2]
[332083981,1720953058027,-500.0,0.00013972,2]
[332083984,1720953058040,-500.0,0.00013972,2]
[332083986,1720953058053,-531.53,0.00013972,2]
[332083988,1720953058065,-500.0,0.00013972,2]
[332083990,1720953058076,-500.0,0.00013972,2]
[332083993,1720953058088,-500.0,0.00013972,2]
[332083995,1720953058100,-500.0,0.00013972,2]
[332083997,1720953058113,-614.64,0.00013972,2]
[332083999,1720953058124,-522.28,0.00013972,2]
[332084001,1720953058136,-500.0,0.00013972,2]
[332084004,1720953058148,-500.0,0.00013972,2]
[332084006,1720953058159,-500.0,0.00013972,2]
[332084008,1720953058171,-500.0,0.00013972,2]
[332084010,1720953058182,-500.0,0.00013972,2]
[332084012,1720953058193,-500.0,0.00013972,2]
[332084014,1720953058204,-500.0,0.00013972,2]
[332084016,1720953058214,-500.0,0.00013972,2]
[332084019,1720953058226,-500.0,0.00013972,2]
[332084021,1720953058238,-515.7,0.00013972,2]
[332084023,1720953058249,-500.0,0.00013972,2]
[332084025,1720953058259,-500.0,0.00013972,2]
[332084028,1720953058270,-500.0,0.00013972,2]
[332084030,1720953058281,-500.0,0.00013972,2]
[332084032,1720953058295,-832.99,0.00013972,2]
[332084034,1720953058306,-575.04,0.00013972,2]
[332084036,1720953058320,-500.0,0.00013972,2]
[332084039,1720953058331,-500.0,0.00013972,2]
[332084041,1720953058342,-500.0,0.00013972,2]
[332084043,1720953058353,-500.0,0.00013972,2]
[332084045,1720953058366,-500.0,0.00013972,2]
[332084047,1720953058377,-958.73,0.00013972,2]
[332084049,1720953058388,-500.0,0.00013972,2]
[332084052,1720953058399,-500.0,0.00013972,2]
[332084054,1720953058410,-594.21,0.00013972,2]
[332084056,1720953058421,-166.09581586,0.00013972,2]
[332084058,1720953058432,-500.0,0.00013972,2]
[332084060,1720953058442,-573.98,0.00013972,2]
[332084062,1720953058453,-500.0,0.00013972,2]
[332084064,1720953058464,-500.0,0.00013972,2]
[332084066,1720953058475,-614.44,0.00013972,2]
[332084069,1720953058486,-568.85,0.00013972,2]
[332084071,1720953058497,-500.0,0.00013972,2]
[332084073,1720953058508,-500.0,0.00013972,2]
[332084075,1720953058519,-622.71,0.00013972,2]
[332084077,1720953058529,-500.0,0.00013972,2]
[332084079,1720953058540,-846.91,0.00013972,2]
[332084082,1720953058551,-500.0,0.00013972,2]
[332084084,1720953058562,-500.0,0.00013972,2]
[332084086,1720953058573,-644.97,0.00013972,2]
[332084088,1720953058584,-500.0,0.00013972,2]
[332084090,1720953058594,-621.73,0.00013972,2]
[332084092,1720953058605,-500.0,0.00013972,2]
[332084094,1720953058617,-500.0,0.00013972,2]
[332084097,1720953058628,-500.0,0.00013972,2]
[332084099,1720953058638,-916.4,0.00013972,2]
[332084101,1720953058649,-500.0,0.00013972,2]
[332084103,1720953058660,-577.0,0.00013972,2]
[332084105,1720953058672,-647.37,0.00013972,2]
[332084107,1720953058684,-500.0,0.00013972,2]
[332084110,1720953058696,-806.33,0.00013972,2]
[332084112,1720953058706,-500.0,0.00013972,2]
[332084114,1720953058719,-1047.99,0.00013972,2]
[332084116,1720953058730,-500.0,0.00013972,2]
[332084118,1720953058743,-279.67586247,0.00013972,2]
[332084121,1720953058753,-873.3,0.00013972,2]
[332084123,1720953058766,-567.1,0.00013972,2]
[332084125,1720953058777,-676.5,0.00013972,2]
[332084127,1720953058788,-500.0,0.00013972,2]
[332084129,1720953058798,-500.0,0.00013972,2]
[332084131,1720953058809,-500.0,0.00013972,2]
[332084133,1720953058819,-500.0,0.00013972,2]
[332084135,1720953058830,-500.0,0.00013972,2]
[332084138,1720953058841,-500.0,0.00013972,2]
[332084139,1720953058852,-500.0,0.00013972,2]
[332084140,1720953058864,-589.97,0.00013972,2]
[332084141,1720953058875,-500.0,0.00013972,2]
[332084142,1720953058885,-500.0,0.00013972,2]
[332084143,1720953058896,-521.9,0.00013972,2]
[332084144,1720953058906,-957.15,0.00013972,2]
[332084146,1720953058917,-500.0,0.00013972,2]
[332084148,1720953058927,-611.58,0.00013972,2]
[332084150,1720953058938,-521.59,0.00013972,2]
[332084153,1720953058948,-851.27,0.00013972,2]
[332084155,1720953058959,-500.0,0.00013972,2]
[332084157,1720953058971,-709.74,0.00013972,2]
[332084159,1720953058983,-500.0,0.00013972,2]
[332084161,1720953058994,-500.0,0.00013972,2]
[332084163,1720953059005,-500.0,0.00013972,2]
[332084165,1720953059015,-500.0,0.00013972,2]
[332084167,1720953059026,-500.0,0.00013972,2]
[332084170,1720953059037,-500.0,0.00013972,2]
[332084172,1720953059047,-500.0,0.00013972,2]
[332084174,1720953059058,-691.5,0.00013972,2]
[332084176,1720953059069,-529.45,0.00013972,2]
[332084178,1720953059079,-500.0,0.00013972,2]
[332084180,1720953059090,-771.5,0.00013972,2]
[332084182,1720953059101,-507.42,0.00013972,2]
[332084184,1720953059113,-500.0,0.00013972,2]
[332084187,1720953059123,-500.0,0.00013972,2]
[332084189,1720953059134,-500.0,0.00013972,2]
[332084191,1720953059145,-610.63,0.00013972,2]
[332084193,1720953059155,-707.58,0.00013972,2]
[332084195,1720953059166,-500.0,0.00013972,2]
[332084197,1720953059176,-782.02,0.00013972,2]
[332084199,1720953059186,-756.83,0.00013972,2]
[332084201,1720953059197,-500.0,0.00013972,2]
[332084204,1720953059207,-723.06,0.00013972,2]
[332084206,1720953059218,-500.0,0.00013972,2]
[332084208,1720953059228,-988.21,0.00013972,2]
[332084210,1720953059239,-795.81,0.00013972,2]
[332084212,1720953059249,-500.0,0.00013972,2]
[332084214,1720953059260,-1010.02,0.00013972,2]
[332084216,1720953059270,-500.0,0.00013972,2]
[332084218,1720953059281,-677.21,0.00013972,2]
[332084220,1720953059295,-500.0,0.00013972,2]
[332084222,1720953059306,-584.95,0.00013972,2]
[332084225,1720953059316,-500.0,0.00013972,2]
[332084227,1720953059327,-500.0,0.00013972,2]
[332084229,1720953059338,-500.0,0.00013972,2]
[332084231,1720953059349,-500.0,0.00013972,2]
[332084233,1720953059359,-659.93,0.00013972,2]
[332084235,1720953059369,-500.0,0.00013972,2]
[332084237,1720953059382,-500.0,0.00013972,2]
[332084239,1720953059393,-500.0,0.00013972,2]
[332084241,1720953059403,-500.0,0.00013972,2]
[332084243,1720953059414,-500.0,0.00013972,2]
[332084245,1720953059425,-500.0,0.00013972,2]
[332084247,1720953059435,-500.0,0.00013972,2]
[332084249,1720953059446,-500.0,0.00013972,2]
[332084252,1720953059456,-500.0,0.00013972,2]
[332084254,1720953059466,-576.77,0.00013972,2]
[332084256,1720953059476,-500.0,0.00013972,2]
[332084258,1720953059486,-582.79,0.00013972,2]
[332084260,1720953059496,-500.0,0.00013972,2]
[332084262,1720953059506,-367.79,0.00013972,2]
[332084264,1720953059516,-500.0,0.00013972,2]
[332084266,1720953059527,-732.18,0.00013972,2]
[332084268,1720953059537,-500.0,0.00013972,2]
[332084270,1720953059547,-500.0,0.00013972,2]
[332084272,1720953059557,-500.0,0.00013972,2]
[332084274,1720953059568,-500.0,0.00013972,2]
[332084276,1720953059578,-500.0,0.00013972,2]
[332084278,1720953059589,-575.0,0.00013972,2]
[332084281,1720953059599,-500.0,0.00013972,2]
[332084283,1720953059609,-500.0,0.00013972,2]
[332084285,1720953059619,-500.0,0.00013972,2]
[332084287,1720953059629,-564.06,0.00013972,2]
[332084289,1720953059640,-633.87,0.00013972,2]
[332084291,1720953059652,-500.0,0.00013972,2]
[332084293,1720953059664,-500.0,0.00013972,2]
[332084295,1720953059676,-500.0,0.00013972,2]
[332084298,1720953059686,-500.0,0.00013972,2]
[332084300,1720953059698,-500.0,0.00013972,2]
[332084302,1720953059710,-500.0,0.00013972,2]
[332084304,1720953059721,-500.0,0.00013972,2]
[332084307,1720953059732,-500.0,0.00013972,2]
[332084309,1720953059743,-717.26,0.00013972,2]
[332084311,1720953059754,-503.37,0.00013972,2]
[332084313,1720953059766,-500.0,0.00013972,2]
[332084315,1720953059776,-531.88,0.00013972,2]
[332084317,1720953059788,-500.0,0.00013972,2]
[332084319,1720953059798,-625.34,0.00013972,2]
[332084322,1720953059809,-500.0,0.00013972,2]
[332084324,1720953059820,-536.56,0.00013972,2]
[332084326,1720953059831,-500.0,0.00013972,2]
[332084328,1720953059841,-500.0,0.00013972,2]
[332084330,1720953059852,-500.0,0.00013972,2]
[332084332,1720953059863,-559.11,0.00013972,2]
[332084334,1720953059874,-323.37766518,0.00013972,2]
[332084336,1720953059885,-500.0,0.00013972,2]
[332084339,1720953059896,-647.05,0.00013972,2]
[332084341,1720953059907,-514.14,0.00013972,2]
[332084343,1720953059919,-500.0,0.00013972,2]
[332084345,1720953059931,-546.81,0.00013972,2]
[332084347,1720953059941,-500.0,0.00013972,2]
[332084382,1720953060321,-500.0,0.00013972,2]
[332084385,1720953060354,-769.63,0.00013972,2]
[332084388,1720953060376,-500.0,0.00013972,2]
[332084391,1720953060387,-500.0,0.00013972,2]
[332084393,1720953060397,-500.0,0.00013972,2]
[332084395,1720953060408,-500.0,0.00013972,2]